fUST/lending_fUST_20240221
["ID","MTS","AMOUNT","RATE_DAILY","PERIOD"]
[314665267,1708513839084,-1635.07,0.00019726,2]
[314665268,1708513839093,-500.0,0.00019726,2]
[314665269,1708513839103,-755.37,0.00019726,2]
[314665270,1708513839113,-409.64295234,0.00019726,2]
[314665271,1708513839122,-586.20253158,0.00019726,2]
[314665272,1708513839131,-1618.4,0.00019726,2]
[314665273,1708513839141,-500.0,0.00019726,2]
[314665274,1708513839150,-999.44,0.00019726,2]
[314665275,1708513839159,-4403.61,0.00019726,2]
[314665276,1708513839168,-539.37035199,0.00019726,2]
[314665277,1708513839368,-500.0,0.00019726,2]
[314665278,1708513839379,-500.0,0.00019726,2]
[314665279,1708513839389,-3121.91,0.00019726,2]
[314665280,1708513839399,-500.0,0.00019726,2]
[314665281,1708513839409,-500.0,0.00019726,2]
[314665282,1708513839419,-1697.54,0.00019726,2]
[314665283,1708513839429,-500.0,0.00019726,2]
[314665284,1708513839439,-588.7,0.00019726,2]
[314665285,1708513839448,-500.0,0.00019726,2]
[314665286,1708513839458,-2333.66,0.00019726,2]
[314665287,1708513839468,-500.0,0.00019726,2]
[314665288,1708513839478,-500.0,0.00019726,2]
[314665289,1708513839487,-500.0,0.00019726,2]
[314665290,1708513839497,-500.0,0.00019726,2]
[314665291,1708513839506,-2259.02,0.00019726,2]
[314665292,1708513839519,-975.19,0.00019726,2]
[314665293,1708513839529,-4340.99,0.00019726,2]
[314665294,1708513839539,-500.0,0.00019726,2]
[314665295,1708513839549,-500.0,0.00019726,2]
[314665296,1708513839561,-500.0,0.00019726,2]
[314665297,1708513839570,-500.0,0.00019726,2]
[314665298,1708513839580,-500.0,0.00019726,2]
[314665299,1708513839589,-500.0,0.00019726,2]
[314665300,1708513839600,-2780.92,0.00019726,2]
[314665301,1708513839610,-500.0,0.00019726,2]
[314665302,1708513839620,-500.0,0.00019726,2]
[314665303,1708513839629,-955.6,0.00019726,2]
[314665304,1708513839639,-500.0,0.00019726,2]
[314665305,1708513839649,-581.88330222,0.00019726,2]
[314665306,1708513839659,-500.0,0.00019726,2]
[314665307,1708513839668,-500.0,0.00019726,2]
[314665308,1708513839677,-500.0,0.00019726,2]
[314665309,1708513839686,-500.0,0.00019726,2]
[314665310,1708513839696,-500.0,0.00019726,2]
[314665311,1708513839705,-179.49419892,0.00019726,2]
[314665312,1708513839714,-500.0,0.00019726,2]
[314665313,1708513839724,-500.0,0.00019726,2]
[314665314,1708513839733,-500.0,0.00019726,2]
[314665315,1708513839743,-12336.58,0.00019726,2]
[314665316,1708513839752,-1325.16,0.00019726,2]
[314665317,1708513839761,-500.0,0.00019726,2]
[314665318,1708513839770,-3533.17,0.00019726,2]
[314665319,1708513839779,-850.31,0.00019726,2]
[314665320,1708513839787,-500.0,0.00019726,2]
[314665321,1708513839796,-2189.12,0.00019726,2]
[314665322,1708513839805,-6668.72,0.00019726,2]
[314665323,1708513839814,-500.0,0.00019727,2]
[314665324,1708513839823,-500.0,0.00019727,2]
[314665325,1708513839832,-619.2,0.00019727,2]
[314665326,1708513839841,-3651.02,0.00019727,2]
[314665327,1708513839849,-1761.02,0.00019727,2]
[314665328,1708513839858,-3895.12,0.00019727,2]
[314665329,1708513839868,-500.0,0.00019727,2]
[314665330,1708513839877,-500.0,0.00019727,2]
[314665331,1708513839886,-500.0,0.00019727,2]
[314665332,1708513839894,-500.0,0.00019727,2]
[314665333,1708513839903,-500.0,0.00019727,2]
[314665334,1708513839912,-2322.74,0.00019727,2]
[314665335,1708513839921,-500.0,0.00019728,2]
[314665336,1708513839930,-500.0,0.00019728,2]
[314665337,1708513839939,-1176.07,0.00019728,2]
[314665338,1708513839948,-500.04,0.00019728,2]
[314665339,1708513839957,-500.0,0.00019728,2]
[314665340,1708513839965,-276.73207212,0.00019728,2]
[314665341,1708513839974,-500.0,0.00019728,2]
[314665342,1708513839983,-500.0,0.00019728,2]
[314665343,1708513839991,-500.0,0.00019728,2]
[314665344,1708513840000,-500.0,0.00019728,2]
[314665345,1708513840010,-500.0,0.00019728,2]
[314665346,1708513840018,-181.31327599,0.00019728,2]
[314665364,1708513841888,-997.42132016,0.00019177,2]
[314665371,1708513841941,-650.67904065,0.00019177,2]
[314665374,1708513841954,-1333.67007164,0.00019177,2]
[314665414,1708513843646,-2253.24849639,0.00019177,2]
[314665415,1708513843657,-1026.02,0.00019716,3]
[314665416,1708513843666,-500.0,0.00019726,2]
[314665417,1708513843676,-500.0,0.00019726,2]
[314665418,1708513843686,-500.0,0.00019726,2]
[314665419,1708513843697,-318.68672401,0.00019728,2]
[314665420,1708513843706,-1878.67,0.00019728,2]
[314665421,1708513843715,-500.0,0.00019728,2]
[314665422,1708513843725,-578.59,0.00019728,2]
[314665423,1708513843734,-500.0,0.00019728,2]
[314665424,1708513843743,-500.0,0.00019728,2]
[314665425,1708513843753,-632.13954843,0.00019728,2]
[314665426,1708513843762,-500.0,0.00019728,2]
[314665427,1708513843771,-132.7795558,0.00019728,2]
[314665428,1708513843784,-367.2204442,0.00019728,2]
[314665429,1708513843793,-500.0,0.00019728,2]
[314665430,1708513843803,-500.0,0.00019728,2]
[314665431,1708513843812,-612.95,0.00019728,2]
[314665432,1708513843822,-500.0,0.00019728,2]
[314665433,1708513843832,-209.4795558,0.00019728,2]
[314665434,1708513843843,-290.5204442,0.00019728,2]
[314665435,1708513843853,-2.74475956,0.00019728,2]
[314665445,1708513846941,-1127.07,0.00019726,2]
[314665446,1708513846950,-614.00524044,0.00019728,2]
[314665447,1708513846959,-500.0,0.00019728,2]
[314665448,1708513846968,-372.33560137,0.00019728,2]
[314665449,1708513904894,157.600413,0.00027397,120]
[314665478,1708515031998,-562.13746729,0.00019707,2]
[314665479,1708515032010,-2553.096596,0.00019707,2]
[314665480,1708515032022,-2119.78486555,0.00019707,2]
[314665481,1708515032032,-925.68716291,0.00019708,2]
[314665482,1708515032042,-289.8929992,0.00019711,2]
[314665483,1708515032051,-20309.0,0.00019718,2]
[314665484,1708515032060,-16129.97,0.00019721,2]
[314665485,1708515032070,-666.46,0.00019721,2]
[314665486,1708515032079,-19840.13904209,0.00019722,2]
[314665516,1708515037803,-1590.65,0.00019721,2]
[314665517,1708515037812,-758.59830593,0.00019722,2]
[314665595,1708515039449,-855.02,0.00019713,3]
[314665596,1708515039459,-1035.13741241,0.00019722,2]
[314665597,1708515039471,-1288.37597757,0.00019722,2]
[314665824,1708515467502,9659.1289451,0.00018722,2]
[314665825,1708515885372,-1294.42166765,0.00019615,3]
[314665826,1708515885395,-718.94280189,0.00019619,2]
[314665827,1708515885416,-171.58442521,0.0001962,2]
[314665828,1708515885439,-1164.89,0.0001971,3]
[314665829,1708515885462,-1397.87,0.00019711,3]
[314665830,1708515885484,-189.94,0.00019711,3]
[314665831,1708515885507,-15628.45407554,0.00019718,2]
[314665832,1708515885531,-17154.15,0.0001972,2]
[314665833,1708515885552,-638.69,0.0001972,2]
[314665834,1708515885805,-500.0,0.0001972,2]
[314665835,1708515885829,-15457.88,0.0001972,2]
[314665836,1708515885852,-573.93,0.0001972,2]
[314665837,1708515885874,-854.12,0.0001972,2]
[314665838,1708515885897,-991.61,0.0001972,2]
[314665839,1708515885918,-500.0,0.0001972,2]
[314665840,1708515885939,-500.0,0.0001972,2]
[314665841,1708515885961,-500.0,0.0001972,2]
[314665842,1708515885983,-500.0,0.0001972,2]
[314665843,1708515886007,-500.0,0.0001972,2]
[314665844,1708515886027,-500.0,0.0001972,2]
[314665845,1708515886048,-500.0,0.0001972,2]
[314665846,1708515886070,-500.0,0.0001972,2]
[314665847,1708515886092,-1214.58,0.0001972,2]
[314665848,1708515886114,-169.13718039,0.0001972,2]
[314665849,1708515886137,-500.0,0.0001972,2]
[314665850,1708515886159,-500.0,0.0001972,2]
[314665851,1708515886181,-1524.37,0.0001972,2]
[314665852,1708515886204,-500.0,0.0001972,2]
[314665853,1708515886227,-500.0,0.0001972,2]
[314665854,1708515886248,-500.0,0.0001972,2]
[314665855,1708515886272,-500.0,0.0001972,2]
[314665856,1708515886294,-513.16674299,0.0001972,2]
[314665857,1708515886317,-500.0,0.0001972,2]
[314665858,1708515886340,-1626.81,0.0001972,2]
[314665859,1708515886364,-500.0,0.0001972,2]
[314665860,1708515886387,-500.0,0.0001972,2]
[314665861,1708515886410,-728.71,0.0001972,2]
[314665862,1708515886432,-500.0,0.0001972,2]
[314665863,1708515886454,-500.0,0.0001972,2]
[314665864,1708515886476,-2164.89,0.0001972,2]
[314665865,1708515886497,-500.0,0.0001972,2]
[314665866,1708515886518,-635.45,0.00019721,2]
[314665867,1708515886538,-500.0,0.00019721,2]
[314665868,1708515886559,-500.0,0.00019721,2]
[314665869,1708515886580,-535.12050427,0.00019721,2]
[314665870,1708515886601,-591.65,0.00019721,2]
[314665871,1708515886623,-500.0,0.00019721,2]
[314665872,1708515886643,-1156.89,0.00019721,2]
[314665873,1708515886667,-500.0,0.00019721,2]
[314665874,1708515886689,-500.0,0.00019721,2]
[314665875,1708515886711,-391.39589756,0.00019721,2]
[314665876,1708515886732,-500.0,0.00019721,2]
[314665877,1708515886753,-500.0,0.00019721,2]
[314665878,1708515886776,-1587.77,0.00019721,2]
[314665879,1708515886797,-723.89,0.00019721,2]
[314665880,1708515886818,-500.0,0.00019721,2]
[314665881,1708515886841,-500.0,0.00019721,2]
[314665882,1708515886863,-500.0,0.00019721,2]
[314665883,1708515886885,-957.8,0.00019721,2]
[314665884,1708515886907,-500.0,0.00019721,2]
[314665885,1708515886929,-500.0,0.00019721,2]
[314665886,1708515886950,-1550.97,0.00019721,2]
[314665887,1708515886971,-500.0,0.00019721,2]
[314665888,1708515886993,-500.0,0.00019721,2]
[314665889,1708515887015,-500.0,0.00019721,2]
[314665890,1708515887036,-500.0,0.00019721,2]
[314665891,1708515887058,-500.0,0.00019721,2]
[314665892,1708515887079,-440.16405819,0.00019721,2]
[314665893,1708515887101,-500.0,0.00019721,2]
[314665894,1708515887125,-949.51,0.00019721,2]
[314665895,1708515887150,-500.0,0.00019721,2]
[314665896,1708515887172,-500.0,0.00019721,2]
[314665897,1708515887193,-500.0,0.00019721,2]
[314665898,1708515887215,-500.0,0.00019721,2]
[314665899,1708515887236,-961.07,0.00019721,2]
[314665900,1708515887256,-500.0,0.00019721,2]
[314665901,1708515887277,-500.0,0.00019721,2]
[314665902,1708515887298,-407.79233895,0.00019721,2]
[314665903,1708515887320,-500.0,0.00019721,2]
[314665904,1708515887341,-500.0,0.00019721,2]
[314665905,1708515887363,-500.0,0.00019721,2]
[314665906,1708515887384,-500.0,0.00019721,2]
[314665907,1708515887405,-500.0,0.00019721,2]
[314665908,1708515887426,-3385.95,0.00019721,2]
[314665909,1708515887447,-500.0,0.00019721,2]
[314665910,1708515887467,-500.0,0.00019721,2]
[314665911,1708515887489,-500.0,0.00019721,2]
[314665912,1708515887511,-2665.05,0.00019721,2]
[314665913,1708515887532,-814.88,0.00019721,2]
[314665914,1708515887552,-500.0,0.00019721,2]
[314665915,1708515887573,-500.0,0.00019721,2]
[314665916,1708515887596,-4160.12,0.00019721,2]
[314665917,1708515887617,-500.0,0.00019721,2]
[314665918,1708515887638,-1080.11,0.00019721,2]
[314665919,1708515887659,-500.0,0.00019721,2]
[314665920,1708515887681,-11822.56,0.00019721,2]
[314665921,1708515887703,-500.0,0.00019721,2]
[314665922,1708515887725,-500.0,0.00019721,2]
[314665923,1708515887747,-2097.91,0.00019721,2]
[314665924,1708515887769,-500.0,0.00019721,2]
[314665925,1708515887792,-211.89819245,0.00019721,2]
[314665926,1708515887814,-500.0,0.00019721,2]
[314665927,1708515887835,-565.94019937,0.00019721,2]
[314665928,1708515887856,-500.0,0.00019721,2]
[314665929,1708515887879,-500.0,0.00019721,2]
[314665930,1708515887901,-681.86,0.00019721,2]
[314665931,1708515887923,-1269.95,0.00019721,2]
[314665932,1708515887944,-500.0,0.00019721,2]
[314665933,1708515887965,-2225.96,0.00019721,2]
[314665934,1708515887985,-1800.39,0.00019721,2]
[314665935,1708515888006,-500.0,0.00019721,2]
[314665936,1708515888027,-500.0,0.00019721,2]
[314665937,1708515888048,-649.29339227,0.00019721,2]
[314665938,1708515888071,-6390.86,0.00019721,2]
[314665939,1708515888092,-500.0,0.00019721,2]
[314665940,1708515888117,-4220.13,0.00019721,2]
[314665941,1708515888140,-3498.9,0.00019721,2]
[314665942,1708515888160,-631.90500845,0.00019721,2]
[314665943,1708515888182,-500.0,0.00019721,2]
[314665944,1708515888204,-2991.83,0.00019721,2]
[314665945,1708515888225,-1687.64,0.00019721,2]
[314665946,1708515888246,-554.48,0.00019721,2]
[314665947,1708515888267,-500.0,0.00019721,2]
[314665948,1708515888290,-500.0,0.00019721,2]
[314665949,1708515888311,-500.0,0.00019721,2]
[314665950,1708515888333,-3732.82,0.00019721,2]
[314665951,1708515888478,-500.0,0.00019721,2]
[314665952,1708515888502,-500.0,0.00019721,2]
[314665953,1708515888523,-2236.42,0.00019721,2]
[314665954,1708515888545,-591.05,0.00019721,2]
[314665955,1708515888566,-500.0,0.00019721,2]
[314665956,1708515888587,-578.06558184,0.00019722,2]
[314665957,1708515888609,-500.0,0.00019722,2]
[314665958,1708515888629,-218.35941306,0.00019722,2]
[314665959,1708515888651,-500.0,0.00019722,2]
[314665960,1708515888673,-564.17,0.00019722,2]
[314665961,1708515888693,-421.57169669,0.00019723,2]
[314665962,1708515888713,-500.0,0.00019723,2]
[314665963,1708515888734,-505.73984545,0.00019723,2]
[314665964,1708515888755,-500.0,0.00019723,2]
[314665965,1708515888778,-500.0,0.00019723,2]
[314665966,1708515888799,-587.41,0.00019724,2]
[314665967,1708515888820,-579.2703639,0.00019724,2]
[314665968,1708515888842,-500.0,0.00019724,2]
[314665969,1708515888862,-500.0,0.00019724,2]
[314665970,1708515888883,-500.0,0.00019724,2]
[314665971,1708515888903,-500.0,0.00019724,2]
[314665972,1708515888925,-500.0,0.00019724,2]
[314665973,1708515888946,-500.0,0.00019724,2]
[314665974,1708515888967,-500.0,0.00019724,2]
[314665975,1708515888987,-500.0,0.00019724,2]
[314665976,1708515889007,-500.0,0.00019724,2]
[314665977,1708515889028,-837.8,0.00019724,2]
[314665978,1708515889048,-500.0,0.00019724,2]
[314665979,1708515889069,-8459.2613008,0.0001999,2]
[314665980,1708515889091,-17154.15,0.00019994,2]
[314665981,1708515889113,-638.69,0.00019994,2]
[314665982,1708515889139,-500.0,0.00019994,2]
[314665983,1708515889162,-15457.88,0.00019994,2]
[314665984,1708515889185,-573.93,0.00019994,2]
[314665985,1708515889206,-854.12,0.00019994,2]
[314665986,1708515889228,-991.61,0.00019994,2]
[314665987,1708515889250,-500.0,0.00019994,2]
[314665988,1708515889271,-500.0,0.00019994,2]
[314665989,1708515889294,-500.0,0.00019994,2]
[314665990,1708515889316,-500.0,0.00019994,2]
[314665991,1708515889338,-1214.58,0.00019994,2]
[314665992,1708515889360,-1524.37,0.00019994,2]
[314665993,1708515889383,-500.0,0.00019994,2]
[314665994,1708515889405,-500.0,0.00019994,2]
[314665995,1708515889427,-1626.81,0.00019994,2]
[314665996,1708515889448,-500.0,0.00019994,2]
[314665997,1708515889470,-728.71,0.00019994,2]
[314665998,1708515889492,-500.0,0.00019994,2]
[314665999,1708515889514,-2164.89,0.00019994,2]
[314666000,1708515889535,-635.45,0.00019995,2]
[314666001,1708515889557,-500.0,0.00019995,2]
[314666002,1708515889578,-500.0,0.00019995,2]
[314666003,1708515889599,-591.65,0.00019995,2]
[314666004,1708515889619,-500.0,0.00019995,2]
[314666005,1708515889640,-1156.89,0.00019995,2]
[314666006,1708515889661,-500.0,0.00019995,2]
[314666007,1708515889682,-500.0,0.00019995,2]
[314666008,1708515889703,-500.0,0.00019995,2]
[314666009,1708515889723,-500.0,0.00019995,2]
[314666010,1708515889745,-1587.77,0.00019995,2]
[314666011,1708515889766,-723.89,0.00019995,2]
[314666012,1708515889787,-500.0,0.00019995,2]
[314666013,1708515889808,-500.0,0.00019995,2]
[314666014,1708515889829,-500.0,0.00019995,2]
[314666015,1708515889850,-957.8,0.00019995,2]
[314666016,1708515889870,-623.77020412,0.00019995,2]
[314666017,1708515889891,-500.0,0.00019995,2]
[314666018,1708515889912,-1550.97,0.00019995,2]
[314666019,1708515889933,-500.0,0.00019995,2]
[314666020,1708515889956,-500.0,0.00019995,2]
[314666021,1708515889977,-500.0,0.00019995,2]
[314666022,1708515889999,-500.0,0.00019995,2]
[314666023,1708515890021,-500.0,0.00019995,2]
[314666024,1708515890045,-949.51,0.00019995,2]
[314666025,1708515890068,-500.0,0.00019995,2]
[314666026,1708515890090,-500.0,0.00019995,2]
[314666027,1708515890112,-500.0,0.00019995,2]
[314666028,1708515890135,-500.0,0.00019995,2]
[314666029,1708515890158,-961.07,0.00019995,2]
[314666030,1708515890181,-500.0,0.00019995,2]
[314666031,1708515890202,-500.0,0.00019995,2]
[314666032,1708515890225,-500.0,0.00019995,2]
[314666033,1708515890246,-500.0,0.00019995,2]
[314666034,1708515890268,-500.0,0.00019995,2]
[314666035,1708515890290,-500.0,0.00019995,2]
[314666036,1708515890311,-500.0,0.00019995,2]
[314666037,1708515890333,-3385.95,0.00019995,2]
[314666038,1708515890355,-500.0,0.00019995,2]
[314666039,1708515890376,-500.0,0.00019995,2]
[314666040,1708515890399,-500.0,0.00019995,2]
[314666041,1708515890421,-2665.05,0.00019995,2]
[314666042,1708515890443,-814.88,0.00019995,2]
[314666043,1708515890465,-500.0,0.00019995,2]
[314666044,1708515890486,-500.0,0.00019995,2]
[314666045,1708515890508,-4160.12,0.00019995,2]
[314666046,1708515890530,-500.0,0.00019995,2]
[314666047,1708515890551,-1080.11,0.00019995,2]
[314666048,1708515890572,-500.0,0.00019995,2]
[314666049,1708515890594,-11822.56,0.00019995,2]
[314666050,1708515890617,-500.0,0.00019995,2]
[314666051,1708515890638,-500.0,0.00019995,2]
[314666052,1708515890660,-2097.91,0.00019995,2]
[314666053,1708515890683,-500.0,0.00019995,2]
[314666054,1708515890705,-500.0,0.00019995,2]
[314666055,1708515890726,-217.19381743,0.00019995,2]
[314666056,1708515890747,-500.0,0.00019995,2]
[314666057,1708515890776,-681.86,0.00019995,2]
[314666058,1708515890817,-1269.95,0.00019995,2]
[314666059,1708515890858,-500.0,0.00019995,2]
[314666060,1708515890901,-2225.96,0.00019995,2]
[314666061,1708515890943,-1800.39,0.00019995,2]
[314666062,1708515890970,-500.0,0.00019995,2]
[314666063,1708515890991,-500.0,0.00019995,2]
[314666064,1708515891014,-6390.86,0.00019995,2]
[314666065,1708515891036,-500.0,0.00019995,2]
[314666066,1708515891059,-4220.13,0.00019995,2]
[314666067,1708515891080,-3498.9,0.00019995,2]
[314666068,1708515891248,-500.0,0.00019995,2]
[314666069,1708515891271,-2991.83,0.00019995,2]
[314666070,1708515891293,-1687.64,0.00019995,2]
[314666071,1708515891315,-554.48,0.00019995,2]
[314666072,1708515891337,-500.0,0.00019995,2]
[314666073,1708515891360,-500.0,0.00019995,2]
[314666074,1708515891382,-500.0,0.00019995,2]
[314666075,1708515891403,-3732.82,0.00019995,2]
[314666076,1708515891424,-500.0,0.00019995,2]
[314666077,1708515891445,-500.0,0.00019995,2]
[314666078,1708515891466,-2236.42,0.00019995,2]
[314666079,1708515891487,-591.05,0.00019995,2]
[314666080,1708515891508,-500.0,0.00019995,2]
[314666081,1708515891529,-500.0,0.00019996,2]
[314666082,1708515891551,-500.0,0.00019996,2]
[314666083,1708515891572,-564.17,0.00019996,2]
[314666084,1708515891593,-500.0,0.00019997,2]
[314666085,1708515891614,-500.0,0.00019997,2]
[314666086,1708515891636,-500.0,0.00019997,2]
[314666087,1708515891656,-587.41,0.00019998,2]
[314666088,1708515891678,-500.0,0.00019998,2]
[314666089,1708515891700,-500.0,0.00019998,2]
[314666090,1708515891722,-500.0,0.00019998,2]
[314666091,1708515891743,-500.0,0.00019998,2]
[314666092,1708515891765,-500.0,0.00019998,2]
[314666093,1708515891788,-500.0,0.00019998,2]
[314666094,1708515891809,-500.0,0.00019998,2]
[314666095,1708515891830,-500.0,0.00019998,2]
[314666096,1708515891851,-500.0,0.00019998,2]
[314666097,1708515891872,-837.8,0.00019998,2]
[314666098,1708515891893,-500.0,0.00019998,2]
[314666099,1708515891913,-342.10901001,0.0002,2]
[314666100,1708515891934,-13835.12446073,0.0002,4]
[314666101,1708515891954,-152.38055326,0.0002,2]
[314666102,1708515891975,-200.4553765,0.0002,2]
[314666103,1708515892135,500.0,0.0001972,2]
[314666104,1708515892167,500.0,0.00019994,2]
[314666105,1708515892209,970.74,0.00019711,3]
[314666106,1708515901279,15724.63,0.0001972,2]
[314666107,1708515901530,15724.63,0.00019994,2]
[314666108,1708515904201,538.46,0.00019721,2]
[314666109,1708515904454,538.46,0.00019995,2]
[314666110,1708515916042,500.0,0.0001972,2]
[314666111,1708515916324,500.0,0.00019994,2]
[314666112,1708515916545,500.0,0.00019721,2]
[314666113,1708515916631,500.0,0.00019995,2]
[314666114,1708515918907,782.94,0.0001972,2]
[314666115,1708515919542,782.94,0.00019994,2]
[314666116,1708515921355,500.0,0.0001972,2]
[314666117,1708515921626,500.0,0.00019994,2]
[314666118,1708515925782,500.0,0.00019721,2]
[314666119,1708515926051,500.0,0.00019995,2]
[314666120,1708515927833,500.0,0.00019721,2]
[314666121,1708515928090,500.0,0.00019995,2]
[314666122,1708515933648,500.0,0.00019721,2]
[314666123,1708515933899,333.81277776,0.00019995,2]
[314666124,1708515936487,2442.96,0.00019721,2]
[314666125,1708515936750,2442.96,0.00019995,2]
[314666126,1708515941170,500.0,0.00019721,2]
[314666127,1708515941358,582.5,0.00019719,2]
[314666128,1708515941427,500.0,0.00019995,2]
[314666129,1708515941612,582.5,0.00019993,2]
[314666130,1708515947270,500.0,0.00019719,2]
[314666131,1708515947570,526.1,0.0001972,2]
[314666132,1708515947599,500.0,0.00019993,2]
[314666133,1708515947842,526.1,0.00019994,2]
[314666134,1708515950685,500.0,0.00019721,2]
[314666135,1708515950933,500.0,0.00019721,2]
[314666136,1708515950963,500.0,0.00019995,2]
[314666137,1708515951427,239.59613669,0.00019995,2]
[314666138,1708515956651,500.0,0.0001972,2]
[314666139,1708515958480,500.0,0.00019721,2]
[314666140,1708515959086,500.0,0.00019995,2]
[314666141,1708515965497,908.98,0.0001972,2]
[314666142,1708515965675,228.07267334,0.0002,2]
[314666143,1708515965783,908.98,0.00019994,2]
[314666144,1708515969986,500.0,0.0001972,2]
[314666145,1708515970246,500.0,0.00019994,2]
[314666146,1708515977753,500.0,0.00019721,2]
[314666147,1708515978006,500.0,0.00019995,2]
[314666148,1708515990615,1455.46,0.0001972,2]
[314666149,1708515990868,1455.46,0.00019994,2]
[314666150,1708515994930,1164.12,0.0001972,2]
[314666151,1708515995185,1164.12,0.00019994,2]
[314666152,1708515997353,500.0,0.0001972,2]
[314666153,1708515997645,174.4,0.00019994,2]
[314666154,1708516000717,1397.34,0.00019719,2]
[314666155,1708516000782,500.0,0.0001972,2]
[314666156,1708516001002,1397.34,0.00019993,2]
[314666157,1708516001206,500.0,0.00019994,2]
[314666158,1708516009885,10837.35,0.00019721,2]
[314666159,1708516010147,10837.35,0.00019995,2]
[314666160,1708516015840,5858.29,0.0001972,2]
[314666161,1708516016127,5858.29,0.00019994,2]
[314666162,1708516020198,500.0,0.00019721,2]
[314666163,1708516020471,500.0,0.00019995,2]
[314666164,1708516023869,500.0,0.0001972,2]
[314666165,1708516024096,500.0,0.00019994,2]
[314666166,1708516024352,1113.37,0.0001972,2]
[314666167,1708516024700,3868.45,0.0001972,2]
[314666168,1708516024971,3868.45,0.00019994,2]
[314666169,1708516025151,1113.37,0.00019994,2]
[314666170,1708516031558,1923.08,0.00019721,2]
[314666171,1708516031802,1923.08,0.00019995,2]
[314666172,1708516038379,2742.51,0.0001972,2]
[314666173,1708516038637,2742.51,0.00019994,2]
[314666174,1708516040795,500.0,0.00019721,2]
[314666175,1708516041047,500.0,0.00019995,2]
[314666176,1708516043433,500.0,0.0001972,2]
[314666177,1708516043699,500.0,0.00019994,2]
[314666178,1708516045583,767.98,0.00019721,2]
[314666179,1708516045863,767.98,0.00019995,2]
[314666180,1708516051296,500.0,0.0001972,2]
[314666181,1708516051544,500.0,0.00019994,2]
[314666182,1708516056479,500.0,0.00019719,2]
[314666183,1708516056755,500.0,0.00019993,2]
[314666184,1708516068081,500.0,0.0001972,2]
[314666185,1708516068349,535.49919868,0.00019994,2]
[314666186,1708516075270,542.34,0.00019719,2]
[314666187,1708516076105,500.0,0.0001972,2]
[314666188,1708516076245,542.34,0.00019993,2]
[314666189,1708516076363,500.0,0.00019994,2]
[314666190,1708516077828,500.0,0.00019721,2]
[314666191,1708516078227,500.0,0.00019995,2]
[314666192,1708516083219,500.0,0.00019722,2]
[314666193,1708516083271,2040.46,0.00019721,2]
[314666194,1708516083430,500.0,0.00019996,2]
[314666195,1708516083563,2040.46,0.00019995,2]
[314666196,1708516083664,667.99,0.00019719,2]
[314666197,1708516083928,667.99,0.00019993,2]
[314666198,1708516084194,630.69398678,0.0001972,2]
[314666199,1708516086332,500.0,0.00019722,2]